[Event "Cattolica Chess Festival 2022"]
[Site "Cattolica"]
[Date "2022.06.04"]
[Round "1.9"]
[White "Nurgaliyev, Sauat"]
[Black "Milikow, Elie"]
[Result "1/2-1/2"]
[ECO "B32"]
[WhiteElo "2187"]
[BlackElo "2428"]
[Annotator "TA"]
[PlyCount "141"]
[EventDate "2022.06.04"]
[EventCountry "ITA"]
[SourceTitle "playchess.com"]
[Source "ChessBase"]
[SourceQuality "1"]
[TimeControl "5400+30"]

{[%evp 14,141,32,21,44,22,29,8,14,-10,10,0,0,-2,5,0,0,0,9,0,41,39,39,31,32,38,91,90,90,29,0,4,82,34,205,136,177,173,173,160,198,195,193,196,338,320,264,295,335,339,298,316,289,328,340,326,314,301,310,308,273,143,127,8,260,258,231,207,271,108,189,156,238,217,561,558,498,531,489,437,345,321,319,72,114,0,0,0,0,0,0,0,0,0,0,0,0,0,0,0,0,0,0,0,0,0,0,0,0,0,0,0,0,0,0,0,0,0,0,0,0,-8,-8,-8,-8,-8,-8,-8,-8,-8]} 1. e4 {[%emt 0:30:01]} c5 {[%emt 0:30:07]} 2. Nf3 {[%emt 0:00:11][%cal Bg1f3,Bf3d4,Bd4b5,Bb5a3,Ba3c4][%mdl 32]} Nc6 {[%emt 0:00:05]} 3. d4 {[%emt 0:00:19]} cxd4 {[%emt 0:00:04]} 4. Nxd4 {[%emt 0:00:05]} e5 {[%emt 0:00:13]} 5. Nb5 {[%emt 0:00:22]} d6 {[%emt 0:00:09]} 6. N1c3 {[%emt 0:00:45]} a6 {[%emt 0:00:08]} 7. Na3 {[%emt 0:00:07]} Be6 {[%emt 0:00:16]} 8. Nc4 {[%emt 0:02:12]} Rb8 {[%emt 0:00:08] seems to push 8...b5 aside. B32: Sicilian: Löwenthal and Kalashnikov Variations.} 9. Ne3 {[%emt 0:01:26]} Nf6 {[%emt 0:00:45] [#]} 10. a3 $146 {[%emt 0:01:59]} ({Predecessor:} 10. Bd3 g6 11. O-O Bg7 12. Ncd5 Bxd5 13. exd5 Ne7 14. c4 O-O 15. Be2 Nd7 16. b3 {0-1 (42) Alekseenko,K (2698)-Dardha,D (2561) Chess.com INT 2022}) 10... g6 {[%emt 0:03:03]} 11. g3 {[%emt 0:05:16]} h5 {[%emt 0:05:45]} 12. h4 {[%emt 0:03:57]} (12. Ned5 {keeps more tension.} Bxd5 13. Nxd5 Nxe4 14. Bg2) 12... Bh6 {[%emt 0:02:49]} 13. Bg2 {[%emt 0:01:28]} Rc8 {[%emt 0:12:08]} 14. Ncd5 {[%emt 0:05:21]} Bxd5 {[%emt 0:09:25]} 15. Nxd5 {[%emt 0:13:38]} Nxd5 {[%emt 0:01:13]} 16. Bxh6 {[%emt 0:03:47]} Nf4 {[%emt 0:08:38]} 17. Bxf4 {[%emt 0:04:27]} exf4 {[%emt 0:00:07]} 18. gxf4 {[%emt 0:00:53]} Qf6 {[%emt 0:02:06][%csl LRb2,LRf4]} 19. c3 {[%emt 0:01:10]} O-O {[%emt 0:06:24]} (19... Qxf4 $14 20. Qf3 Qh6) 20. Qf3 $16 {[%emt 0:03:08]} Na5 {[%emt 0:01:18]} 21. Qg3 {[%emt 0:02:43]} (21. O-O-O $16) 21... Nc4 $11 {[%emt 0:01:56]} 22. O-O {[%emt 0:02:35]} Rfe8 {[%emt 0:05:26]} (22... Nxb2 $11 {remains equal.} 23. e5 dxe5 24. fxe5 Qe7) 23. Rfe1 {[%emt 0:04:00]} ({White should play} 23. Rfb1 $16) 23... Rc5 $2 {[%emt 0:03:50]} (23... Nxb2 $14 24. e5 dxe5) 24. Re2 {[%emt 0:02:32]} a5 {[%emt 0:01:27]} 25. b3 {[%emt 0:03:34]} Nb6 {[%emt 0:00:11]} 26. Re3 {[%emt 0:01:44]} Kh7 {[%emt 0:01:49]} 27. Rd1 {[%emt 0:01:33]} a4 {[%emt 0:01:16]} 28. b4 {[%emt 0:01:42]} Rcc8 {[%emt 0:01:51]} (28... Rc7 $142 29. e5 dxe5) 29. e5 $18 {[%emt 0:00:58]} dxe5 {[%emt 0:00:03]} 30. fxe5 {[%emt 0:01:07]} Qe7 {[%emt 0:01:19]} 31. e6 {[%emt 0:00:00]} Rcd8 {[%emt 0:00:00] Prevents Rd6.} 32. Rxd8 {[%emt 0:00:00]} Rxd8 {[%emt 0:00:00]} 33. exf7 {[%emt 0:00:00]} Qxf7 {[%emt 0:00:00]} 34. Qg5 {[%emt 0:00:00]} Rd1+ {[%emt 0:00:00]} 35. Kh2 {[%emt 0:00:00] Black must now prevent Re7.} Rd7 {[%emt 0:00:00] Inhibits Re7.} 36. Rf3 {[%emt 0:00:00]} Qe8 {[%emt 0:00:00]} 37. Rg3 {[%emt 0:00:00]} (37. Bf1 $18 Rd5 38. Qg3) 37... Nc4 $16 {[%emt 0:00:00]} 38. Qf4 {[%emt 0:00:00]} ({Don't do} 38. Qb5 Nd6 39. Qxa4 Qf7) ({Better is} 38. Bd5 $16 Nd6 39. Re3) 38... Ne5 {[%emt 0:00:00][%mdl 8192]} (38... Qf7 $11 39. Qxf7+ Rxf7) 39. Re3 $18 {[%emt 0:00:00]} Re7 {[%emt 0:00:00] ...Ng4+ is the strong threat.} 40. Bh3 {[%emt 0:00:00] Inhibits Ng4+.} Qb8 {[%emt 0:02:37] aiming for ...Ng4+.} 41. Qg3 {[%emt 0:00:00]} (41. Kg1 $18 {has better winning chances.}) 41... Qd6 {[%emt 0:02:03]} (41... Qc7 $16) 42. Kg1 {[%emt 0:00:00]} Qd1+ {[%emt 0:01:51] [#]} (42... Kg7 $16 {was necessary.} 43. Bf1 Qf6) 43. Bf1 $1 {[%emt 0:00:00]} Nc6 {[%emt 0:00:48]} (43... Qg4 {is a better chance.} 44. Qxg4 hxg4) 44. Rxe7+ {[%emt 0:01:30]} Nxe7 {[%emt 0:00:01][%mdl 4096] Endgame KQB-KQN} 45. Qc7 $1 {[%emt 0:00:38][%csl LRb7,LRe7]} Qg4+ {[%emt 0:00:09]} 46. Bg2 {[%emt 0:00:38]} Qxh4 {[%emt 0:00:23]} 47. Qxb7 {[%emt 0:00:31]} Qg5 {[%emt 0:00:25]} 48. Qf3 $2 {[%emt 0:02:38]} ({Not} 48. f4 Qh4 $14) (48. Qc7 $18) 48... Nf5 $16 {[%emt 0:00:40] [#]} 49. b5 {[%emt 0:01:11]} (49. c4 $1 $16 {[%cal Rc4c5]}) 49... Qc1+ $11 {[%emt 0:00:39] The position is equal.} 50. Bf1 {[%emt 0:00:58] And now b6 would win.} Qxa3 {[%emt 0:00:33]} 51. Qa8 {[%emt 0:01:53] Strongly threatening b6.} Qb3 {[%emt 0:01:08]} 52. Qa7+ {[%emt 0:00:40]} Kh6 {[%emt 0:00:20]} 53. b6 {[%emt 0:00:32] b7 would kill now.} a3 {[%emt 0:00:20]} 54. b7 {[%emt 0:02:10]} a2 $1 {[%emt 0:00:15]} 55. b8=Q {[%emt 0:01:41]} Qxb8 {[%emt 0:00:10]} 56. Qxb8 {[%emt 0:00:00] White wants to mate with Qh8+.} a1=Q {[%emt 0:00:13] KQB-KQN} 57. Qh8+ {[%emt 0:00:00]} Kg5 {[%emt 0:00:07]} 58. Qd8+ {[%emt 0:00:00]} Kh6 {[%emt 0:00:07]} 59. Qh8+ {[%emt 0:00:14]} Kg5 {[%emt 0:00:05]} 60. Qd8+ {[%emt 0:00:24]} Kf4 {[%emt 0:01:36]} 61. Qd2+ {[%emt 0:00:53]} Ke5 {[%emt 0:00:45]} 62. Qg5 {[%emt 0:00:30]} Qxc3 {[%emt 0:00:47]} 63. Qxg6 {[%emt 0:00:07]} h4 {[%emt 0:00:58]} 64. Qe8+ {[%emt 0:00:31]} Kf4 {[%emt 0:01:31]} 65. Qb8+ {[%emt 0:02:21]} Qe5 {[%emt 0:00:00]} 66. Qxe5+ {[%emt 0:00:00]} Kxe5 {[%emt 0:00:00]} 67. Bh3 {[%emt 0:00:00]} Nd6 {[%emt 0:00:10]} 68. Kg2 {[%emt 0:00:00]} Kf4 {[%emt 0:00:06]} 69. Bd7 {[%emt 0:00:00]} Ne4 {[%emt 0:00:18]} 70. Kh3 {[%emt 0:00:00]} Kg5 {[%emt 0:00:06]} 71. f4+ {[%emt 0:00:00] White really could win this.  Weighted Error Value: White=0.24 (precise) /Black=0.37} 1/2-1/2

[Event "Cattolica Chess Festival 2022"]
[Site "Cattolica"]
[Date "2022.06.04"]
[Round "1.10"]
[White "Buksa, Nataliya"]
[Black "Kalosha, Zhiulien Oleksii"]
[Result "1-0"]
[ECO "B41"]
[WhiteElo "2406"]
[BlackElo "2161"]
[Annotator "TA"]
[PlyCount "71"]
[EventDate "2022.06.04"]
[EventCountry "ITA"]
[SourceTitle "playchess.com"]
[Source "ChessBase"]
[SourceQuality "1"]
[TimeControl "5400+30"]

{[%evp 12,71,43,47,29,21,46,27,22,27,10,-5,78,78,134,131,143,141,124,118,136,137,121,65,106,73,66,73,142,98,97,111,146,74,196,195,192,131,112,72,81,17,34,0,60,16,77,56,67,65,247,241,978,150,946,937,913,900,902,880,29996,29997]} 1. e4 {[%emt 0:30:02]} c5 {[%emt 0:30:07]} 2. Nf3 {[%emt 0:00:54]} e6 {[%emt 0:00:14]} 3. d4 {[%emt 0:00:05]} cxd4 {[%emt 0:00:10]} 4. Nxd4 {[%emt 0:00:03]} a6 {[%emt 0:00:22]} 5. c4 {[%emt 0:00:33]} Nf6 {[%emt 0:00:39]} 6. Nc3 {[%emt 0:00:04][%cal Bb1c3,Bc3e4,Be4g3][%mdl 32]} Qc7 {[%emt 0:00:22]} 7. a3 {[%emt 0:00:13]} Nxe4 {[%emt 0:02:57] B41: Sicilian: Kan Variation: 5 c4.} 8. Nxe4 {[%emt 0:00:05] Threatens to win with Qh5.} Qe5 {[%emt 0:00:24] [#] Against Qh5} 9. Bd3 $1 {[%emt 0:09:39] Strongly threatening Be3.} Qxd4 {[%emt 0:01:22] White has an edge.} 10. O-O {[%emt 0:01:30]} f5 {[%emt 0:07:52]} 11. Be3 {[%emt 0:02:57]} Qe5 {[%emt 0:01:44] [#]} (11... Qxb2 $11 12. Nc5 Nc6) 12. Ng3 $146 {[%emt 0:14:37][%cal Od3f5] 0x0.00207ad00357dp-1022s more active pieces.} ({Predecessor:} 12. f4 Qc7 13. Ng5 Bc5 14. Qh5+ g6 15. Qh3 h6 16. Rae1 Qb6 17. Bxf5 gxf5 18. Qh5+ {0-1 (53) Morozevich,A (2707)-Svidler,P (2690) Moscow 2002}) 12... f4 {[%emt 0:33:04] [#]} (12... Be7 $142) 13. Bd4 $1 {[%emt 0:02:40][%mdl 512]} Qxd4 {[%emt 0:04:29] [#]} 14. Bg6+ $1 {[%emt 0:00:47][%mdl 576] Discovered Attack} hxg6 {[%emt 0:00:08]} 15. Qxd4 {[%emt 0:00:02]} fxg3 {[%emt 0:00:12]} 16. fxg3 {[%emt 0:00:03]} Nc6 {[%emt 0:02:31]} 17. Qf2 {[%emt 0:00:08]} (17. Qe4 $16) 17... d6 {[%emt 0:06:42]} 18. Rae1 {[%emt 0:05:57]} Bd7 {[%emt 0:02:39]} 19. b4 {[%emt 0:01:03]} Rc8 {[%emt 0:00:56]} (19... g5 $142) 20. Qf7+ {[%emt 0:16:48]} Kd8 {[%emt 0:00:16]} 21. Qxg6 {[%emt 0:01:12]} Kc7 {[%emt 0:01:04]} 22. Rf7 {[%emt 0:00:27]} ({White should play} 22. Qg5 $1) 22... Ne5 {[%emt 0:00:58] [#]} (22... Nd8 $16) 23. Rxe5 $1 $18 {[%emt 0:02:40][%mdl 512]} dxe5 {[%emt 0:00:05]} 24. Qxe6 $40 {[%emt 0:00:01][%mdl 128] White has strong attack.} (24. h4 $18) 24... Rd8 $16 {[%emt 0:00:13]} 25. Qxe5+ {[%emt 0:00:55]} Bd6 {[%emt 0:00:48] [#]} 26. Qxg7 {[%emt 0:10:05]} (26. Qe6 $1 $16 {Hoping for c5.} Rh6 27. Qd5) 26... Rhe8 $11 {[%emt 0:00:34]} 27. Qd4 {[%emt 0:00:00]} Be5 {[%emt 0:00:52]} (27... Re1+ $1 $11 28. Kf2 Rde8) 28. Qa7 {[%emt 0:00:00]} Kc8 {[%emt 0:01:15]} (28... Bd6 $11) 29. b5 $16 {[%emt 0:00:00]} axb5 {[%emt 0:00:41]} 30. cxb5 {[%emt 0:00:00] aiming for a4. Really sharp!} Re6 $2 {[%emt 0:00:18]} ({Better is} 30... Bc7 $14) 31. a4 $18 {[%emt 0:01:49] Black must now prevent Rf1.} Bc7 $2 {[%emt 0:00:00]} (31... Bb8 32. Qa5 (32. Qc5+ Bc7 $16) 32... Be8) 32. Qa8+ {[%emt 0:00:00]} Bb8 {[%emt 0:00:00] [#]} 33. Rf1 {[%emt 0:00:00] Inhibits Re1.} Kc7 {[%emt 0:03:02]} 34. Qa5+ {[%emt 0:00:00]} b6 {[%emt 0:00:00]} 35. Rc1+ {[%emt 0:00:00]} Kd6 {[%emt 0:00:00]} 36. Qb4+ {[%emt 0:00:00] Weighted Error Value: White=0.18 (very precise) /Black=0.64} 1-0

[Event "Cattolica Chess Festival 2022"]
[Site "Cattolica"]
[Date "2022.06.05"]
[Round "2.1"]
[White "Bernadskiy, Vitaliy"]
[Black "Shahil Dey"]
[Result "1/2-1/2"]
[ECO "B30"]
[WhiteElo "2636"]
[BlackElo "2369"]
[Annotator "TA"]
[PlyCount "107"]
[EventDate "2022.06.04"]
[EventCountry "ITA"]
[SourceTitle "playchess.com"]
[Source "ChessBase"]
[SourceQuality "1"]
[TimeControl "5400+30"]

{[%evp 14,107,11,12,15,14,10,16,19,12,27,22,20,15,22,0,0,0,0,0,51,60,77,81,83,78,132,111,276,196,217,165,177,195,187,170,160,43,61,42,50,53,68,58,51,34,43,46,37,37,34,28,41,42,43,31,39,31,32,31,31,31,32,4,4,4,8,8,52,52,52,45,45,44,44,44,44,24,24,24,24,24,47,46,46,46,46,46,46,46,46,42,42,42,42,-33]} 1. e4 {[%emt 0:33:30]} c5 {[%emt 0:30:06]} 2. Nf3 {[%emt 0:00:05]} d6 {[%emt 0:00:07]} 3. Nc3 {[%emt 0:00:05]} e5 {[%emt 0:01:17]} 4. Bc4 {[%emt 0:01:15]} Nc6 {[%emt 0:00:07]} 5. d3 {[%emt 0:00:12]} Be7 {[%emt 0:00:21]} 6. O-O {[%emt 0:02:34]} Nf6 {[%emt 0:00:07]} 7. Ng5 {[%emt 0:00:24]} O-O {[%emt 0:00:19]} 8. f4 {[%emt 0:00:02]} Bg4 {[%emt 0:01:17] B30: Sicilian: 2...Nc6 3 Bb5, lines without ...g6.} 9. Qe1 {[%emt 0:00:16]} exf4 {[%emt 0:04:33]} 10. Bxf4 {[%emt 0:00:33]} ({Much weaker is} 10. Rxf4 h6 11. Nf3 g5 12. Rxg4 Nxg4 $15) 10... Nd4 {[%emt 0:06:31] The position is equal.} 11. Qd2 {[%emt 0:03:19]} h6 {[%emt 0:03:33]} 12. Nf3 {[%emt 0:00:05]} Nxf3+ {[%emt 0:02:17]} 13. gxf3 {[%emt 0:00:04]} Bh3 {[%emt 0:00:25]} 14. Rf2 {[%emt 0:04:02][%cal Of4h6] [#]} Nh5 $146 {[%emt 0:09:56]} ({Predecessor:} 14... Kh7 15. Be3 Be6 16. Rg2 d5 17. exd5 Nxd5 18. Kh1 Nxe3 19. Qxe3 Bd7 20. Bd5 {½-½ (20) Marwitz,U (2368)-Heinke,R (2368) ICCF email 2017}) 15. Bxh6 {[%emt 0:01:13][%cal Og1h1]} Bh4 {[%emt 0:02:14]} (15... gxh6 $2 16. Qxh6 Bh4 17. Qxh5 $18) 16. Be3 {[%emt 0:00:03][%cal Og1h1]} Kh8 {[%emt 0:05:33] [#]} (16... Bxf2+ $11 17. Qxf2 Be6) 17. Rg2 $1 {[%emt 0:03:43]} Bxg2 {[%emt 0:02:13]} (17... Qf6 18. Rf1) 18. Qxg2 {[%emt 0:00:06]} Bf6 {[%emt 0:04:17]} 19. Kh1 {[%emt 0:11:09][%mdl 1024] White has strong compensation. White is more active.} b5 {[%emt 0:02:48]} (19... Bxc3 $142 20. bxc3 g6) 20. Bd5 $16 {[%emt 0:07:33] Black must now prevent Rg1.} ({Don't do} 20. Bxb5 $6 Rb8 21. Bd2 g6 $14) 20... Rb8 $2 {[%emt 0:02:01]} (20... Bxc3 $16 21. bxc3 Qf6) 21. Rg1 {[%emt 0:02:43]} g6 {[%emt 0:02:55]} 22. Ne2 {[%emt 0:28:34] Prevents Bd4. aiming for Qh3.} Qd7 {[%emt 0:05:30] Inhibits Qh3.} 23. f4 $1 {[%emt 0:00:00][%cal Bf3f4,Bf4f5][%mdl 32]} Rg8 {[%emt 0:02:23] [#]} 24. f5 $1 {[%emt 0:00:00]} Rg7 {[%emt 0:02:10]} 25. Qf3 {[%emt 0:00:00]} (25. Bh6 $16 Rh7 {[#]} 26. fxg6 $1 fxg6 27. Qxg6) 25... Be5 $14 {[%emt 0:00:33]} 26. fxg6 {[%emt 0:00:00]} fxg6 {[%emt 0:00:15]} 27. Bh6 {[%emt 0:00:00] c3 is the strong threat. The board is on fire. This bishop pair is nice.} Qe7 $1 {[%emt 0:07:56]} 28. Bxg7+ {[%emt 0:00:00]} Qxg7 {[%emt 0:00:01]} 29. Qg2 {[%emt 0:00:00]} Rf8 {[%emt 0:00:09]} 30. c3 {[%emt 0:00:00]} Kh7 {[%emt 0:01:52]} 31. d4 {[%emt 0:00:00]} cxd4 {[%emt 0:00:35]} 32. cxd4 {[%emt 0:00:00]} Nf4 {[%emt 0:00:00]} 33. Nxf4 {[%emt 0:00:00]} Bxf4 {[%emt 0:00:00]} 34. e5 {[%emt 0:00:00]} dxe5 {[%emt 0:00:00]} 35. dxe5 {[%emt 0:00:00] Threatens to win with Be4.} Rf5 {[%emt 0:00:00]} 36. Be4 {[%emt 0:00:00]} Rg5 {[%emt 0:00:00]} 37. Qh3+ {[%emt 0:00:00]} Qh6 {[%emt 0:00:00]} 38. Qd7+ {[%emt 0:00:00]} Kh8 {[%emt 0:00:00][%csl Gf4][%cal Rh6h2]} 39. Qc8+ {[%emt 0:00:00]} Kh7 $132 {[%emt 0:00:00][%csl Gf4][%cal Rh6h2][%mdl 2048] Black is not holding back} 40. Qb7+ {[%emt 0:00:00]} Qg7 {[%emt 0:00:00]} 41. Rxg5 {[%emt 0:00:00]} Qxb7 {[%emt 0:00:00]} 42. Bxb7 {[%emt 0:00:00]} (42. Rh5+ {is more complex.} Kg7 43. Bxb7 gxh5 44. e6) 42... Bxg5 {[%emt 0:00:00][%mdl 4096] Endgame KB-KB} 43. Kg2 {[%emt 0:00:00]} Bf4 {[%emt 0:00:00]} 44. e6 {[%emt 0:00:00] Threatening mate with e7.} Kg7 {[%emt 0:00:00]} 45. h3 {[%emt 0:01:13]} Kf6 {[%emt 0:00:00]} 46. Bc8 {[%emt 0:00:06]} Be5 {[%emt 0:00:00]} 47. b3 {[%emt 0:00:03]} a5 {[%emt 0:00:00]} 48. Kf3 {[%emt 0:00:50] White is slightly better.} a4 {[%emt 0:00:00]} 49. Ke4 {[%emt 0:01:07][%cal Oe6e7] Hoping for e7!} axb3 {[%emt 0:00:00]} 50. axb3 {[%emt 0:00:05][%cal Oe6e7] Intending e7! and mate.} Bd6 {[%emt 0:00:00]} 51. Kd5 {[%emt 0:00:30]} Ke7 {[%emt 0:00:00]} 52. h4 {[%emt 0:01:21]} b4 {[%emt 0:00:00]} 53. Ba6 {[%emt 0:01:34]} Bg3 {[%emt 0:00:00]} 54. Ke4 {[%emt 0:09:11] Black escapes into a draw.  Weighted Error Value: White=0.11 (very precise) /Black=0.10 (very precise)} (54. Bd3 $14) 1/2-1/2

[Event "Cattolica Chess Festival 2022"]
[Site "Cattolica"]
[Date "2022.06.05"]
[Round "2.2"]
[White "Ceres, Dragos"]
[Black "Pantsulaia, Levan"]
[Result "0-1"]
[ECO "B12"]
[WhiteElo "2380"]
[BlackElo "2587"]
[Annotator "TA"]
[PlyCount "50"]
[EventDate "2022.06.04"]
[EventCountry "ITA"]
[SourceTitle "playchess.com"]
[Source "ChessBase"]
[SourceQuality "1"]
[TimeControl "5400+30"]

{[%evp 9,50,16,35,33,31,-20,41,39,41,14,25,0,0,0,-20,-27,-14,-57,-44,-88,-88,-88,-77,-85,-80,-175,-165,-170,-182,-152,-160,-303,-290,-382,-389,-859,-853,-802,-798,-1711,-1670,-1464,-1303]} 1. e4 {[%emt 0:32:28]} c6 {[%emt 0:32:45]} 2. d4 {[%emt 0:02:10]} d5 {[%emt 0:00:09]} 3. f3 dxe4 {[%emt 0:00:16]} 4. fxe4 {[%emt 0:00:56]} e5 {[%emt 0:00:04]} 5. Nf3 {[%emt 0:00:15]} Bg4 {[%emt 0:00:08][%cal Od8d4]} 6. c3 {[%emt 0:00:10] B12: Caro-Kann: Advance Variation.} Nf6 {[%emt 0:01:29]} 7. Bd3 {[%emt 0:02:03]} (7. Qb3 $14 exd4 8. Bc4 (8. Qxb7 Nbd7 $15)) 7... Nbd7 {[%emt 0:00:36]} ({Black should play} 7... exd4 $11 8. e5 Nd5) 8. O-O $14 {[%emt 0:00:47] White is slightly better.} Bd6 {[%emt 0:00:12][%cal Bf8d6,Bd6c7,Bc7e5][%mdl 32]} 9. Kh1 {[%emt 0:08:09] [#] 9.h3 is setting a new trend.} Qe7 $146 {[%emt 0:02:02]} ({Predecessor:} 9... O-O 10. Bg5 h6 11. Bh4 Qc7 12. Nbd2 b5 13. Rc1 a6 14. a4 Nh5 15. h3 Nf4 {1-0 (58) Erigaisi,A (2675)-Salem,A (2690) Malmo 2022}) 10. Qe1 {[%emt 0:06:19]} O-O-O {[%emt 0:04:30]} 11. Nbd2 {[%emt 0:06:27]} Bc7 $36 {[%emt 0:03:58][%mdl 2048] Black has some pressure.} 12. Bc2 {[%emt 0:08:42]} Rhe8 {[%emt 0:03:02]} 13. Qh4 {[%emt 0:03:36]} h6 {[%emt 0:12:33]} 14. Nxe5 {[%emt 0:11:27]} Nxe5 {[%emt 0:00:58]} 15. dxe5 {[%emt 0:00:07]} Bxe5 {[%emt 0:00:15]} ({Don't play} 15... Qxe5 16. Rxf6 $1 {[%mdl 512]} gxf6 17. Qxg4+ f5 18. Qh5 $14) 16. Nf3 {[%emt 0:01:14]} Bc7 {[%emt 0:05:54] ...g5 is the strong threat. Black is more active.} 17. Be3 {[%emt 0:03:03] [#]} (17. Re1 $17 {was worth a try.}) 17... g5 $1 $19 {[%emt 0:03:47]} 18. Qf2 {[%emt 0:04:04][%cal Of3g5]} ({But not} 18. Qxh6 $2 Rh8 19. Qxg5 Rdg8 $19) 18... Nxe4 {[%emt 0:00:21]} 19. Bxe4 {[%emt 0:00:07]} Qxe4 {[%emt 0:00:03]} 20. Bxa7 {[%emt 0:00:46]} (20. Bd4 $17 {keeps fighting.}) 20... Bxf3 {[%emt 0:02:40]} 21. gxf3 {[%emt 0:01:24]} Qf4 {[%emt 0:00:05] And now ...Rd2 would win.} 22. Rae1 $2 {[%emt 0:01:58] [#]} (22. Qg1 Rd2 23. Rf2) 22... Rxe1 $1 {[%emt 0:00:22] Black is clearly winning.} 23. Rxe1 {[%emt 0:00:05]} Rd2 {[%emt 0:00:18]} 24. Re8+ {[%emt 0:00:45]} Kd7 {[%emt 0:00:11] ( -> ...Rd1+)} 25. Re2 {[%emt 0:00:11]} Rd1+ {[%emt 0:00:05] Weighted Error Value: White=0.72/Black=0.06 (flawless)} 0-1

[Event "Cattolica Chess Festival 2022"]
[Site "Cattolica"]
[Date "2022.06.05"]
[Round "2.3"]
[White "Basso, Pier Luigi"]
[Black "Ozcan, Kaan"]
[Result "1-0"]
[ECO "D19"]
[WhiteElo "2570"]
[BlackElo "2329"]
[Annotator "TA"]
[PlyCount "103"]
[EventDate "2022.06.04"]
[EventCountry "ITA"]
[SourceTitle "playchess.com"]
[Source "ChessBase"]
[SourceQuality "1"]
[TimeControl "5400+30"]

{[%evp 16,103,16,16,32,11,42,48,37,29,39,38,48,58,32,31,33,45,47,37,47,20,49,37,105,11,19,0,0,0,79,30,20,20,22,24,37,41,44,0,120,111,123,113,192,77,77,82,95,90,86,82,85,81,91,89,79,79,138,82,108,109,108,108,125,96,93,57,62,62,65,14,14,8,8,0,0,0,0,0,0,0,0,0,0,0,0,0,6050,5289]} 1. d4 {[%emt 0:33:09]} d5 {[%emt 0:30:12]} 2. c4 {[%emt 0:00:33]} c6 {[%emt 0:00:12]} 3. Nf3 {[%emt 0:00:22]} Nf6 {[%emt 0:00:43]} 4. Nc3 {[%emt 0:04:50]} dxc4 {[%emt 0:00:41]} 5. a4 {[%emt 0:00:41]} Bf5 {[%emt 0:00:37]} 6. e3 {[%emt 0:00:38]} e6 {[%emt 0:01:15]} 7. Bxc4 {[%emt 0:00:10]} Bb4 {[%emt 0:00:50]} 8. O-O {[%emt 0:00:41]} O-O {[%emt 0:01:05]} 9. Qe2 {[%emt 0:02:22]} h6 {[%emt 0:05:39] 9...Bg6 is the modern continuation. D19: Slav Defence: 5 a4 Bf5 6 e3: Main line with 9 Qe2.} 10. Rd1 {[%emt 0:04:25]} Ne4 {[%emt 0:06:00]} 11. Na2 {[%emt 0:03:23] [#]} Be7 $146 {[%emt 0:06:08] White is slightly better.} ({Predecessor:} 11... Bd6 12. Ne5 Bc7 13. f3 Nd6 14. Bb3 Qe7 15. e4 Bh7 16. Be3 Kh8 17. Rac1 Nd7 18. Nxd7 Qxd7 {1-0 (54) Evans,L-Kramer,G New York 1954}) 12. Ne5 {[%emt 0:00:18]} Nd6 {[%emt 0:08:00]} 13. Bd3 {[%emt 0:00:42]} Bxd3 {[%emt 0:02:54]} 14. Nxd3 {[%emt 0:01:29]} Ne4 {[%emt 0:03:49]} 15. Nc3 {[%emt 0:06:15]} Nxc3 {[%emt 0:02:52]} 16. bxc3 {[%emt 0:00:03]} Nd7 {[%emt 0:01:45]} 17. e4 {[%emt 0:05:15]} c5 {[%emt 0:08:40]} 18. Rb1 {[%emt 0:06:05]} Qa5 {[%emt 0:05:49]} 19. Rxb7 {[%emt 0:04:01]} Rad8 {[%emt 0:04:21]} ({Black should play} 19... Rfd8 $14) 20. d5 {[%emt 0:03:03] White is more active.} ({Better is} 20. Nb2 $16) 20... Qa6 $11 {[%emt 0:02:43]} 21. Rb1 {[%emt 0:01:25]} exd5 {[%emt 0:01:27]} 22. exd5 {[%emt 0:01:40]} Bf6 {[%emt 0:00:30] [#]} (22... Rfe8 $11 {remains equal.}) 23. Qc2 {[%emt 0:04:59]} (23. Be3 $1 $16) 23... Qc4 {[%emt 0:02:00]} 24. Be3 {[%emt 0:00:15]} Rfe8 {[%emt 0:02:02]} 25. Rbc1 {[%emt 0:01:47]} Ne5 {[%emt 0:01:26]} 26. Nb2 $36 {[%emt 0:02:18][%mdl 2048] White is pushing.} Qh4 {[%emt 0:01:04]} 27. h3 {[%emt 0:00:59]} Nd7 {[%emt 0:00:44]} (27... Nf3+ $11 28. gxf3 Qxh3) 28. a5 {[%emt 0:01:03]} Rb8 {[%emt 0:00:28]} 29. Rb1 {[%emt 0:03:49]} Bd8 {[%emt 0:00:30]} (29... Bg5 $16) 30. Qa4 {[%emt 0:04:05]} (30. Qf5 $18 Re7 31. Nd3) 30... Qxa4 $16 {[%emt 0:00:21]} 31. Nxa4 {[%emt 0:00:02]} Bxa5 {[%emt 0:00:38]} 32. Rxb8 {[%emt 0:01:25]} ({But not} 32. Nxc5 $6 Rxb1 33. Rxb1 Rxe3 $11) 32... Rxb8 {[%emt 0:00:24]} 33. Nxc5 {[%emt 0:00:11]} Nxc5 {[%emt 0:00:00]} 34. Bxc5 {[%emt 0:00:00]} Bxc3 {[%emt 0:00:00]} 35. Bxa7 {[%emt 0:00:00][%mdl 4096] Endgame KRB-KRB} Rb7 {[%emt 0:00:00]} 36. Bc5 {[%emt 0:00:00]} Be5 {[%emt 0:00:00]} (36... f6 $142) 37. Kf1 {[%emt 0:00:00]} (37. d6 $142 {Hoping for d7.} Rd7 38. g3) 37... f6 {[%emt 0:00:00]} 38. Ke2 {[%emt 0:00:00] Strongly threatening d6.} Kf7 {[%emt 0:00:00]} 39. Kd3 {[%emt 0:00:00]} Ke8 {[%emt 0:00:00]} 40. Ke4 {[%emt 0:00:00]} Rc7 {[%emt 0:00:00]} 41. Be3 {[%emt 0:00:00] Threatens to win with d6.} Rc4+ {[%emt 0:00:00]} 42. Kf3 {[%emt 0:00:00]} Kd7 {[%emt 0:00:00]} 43. g4 {[%emt 0:00:00]} ({White should try} 43. Rb1 $14) 43... Kd6 $11 {[%emt 0:00:00]} 44. Rd3 {[%emt 0:00:00]} g5 {[%emt 0:00:00]} 45. Bd2 {[%emt 0:00:00]} Ra4 {[%emt 0:00:00]} 46. Bc1 {[%emt 0:00:00]} Bd4 {[%emt 0:02:09]} 47. Ba3+ {[%emt 0:00:00]} Kxd5 {[%emt 0:01:13]} 48. Bf8 {[%emt 0:00:00]} Ra2 {[%emt 0:01:21]} 49. Kg3 {[%emt 0:00:00]} Ke4 {[%emt 0:02:05]} 50. Rf3 {[%emt 0:00:00]} Ra1 {[%emt 0:02:00]} 51. Rf5 {[%emt 0:00:00]} Ra3+ $2 {[%emt 0:00:45][%mdl 8192] [#]} 52. Bxa3 {[%emt 0:14:07] Weighted Error Value: White=0.18 (very precise) /Black=0.17 (very precise)} 1-0